[Event "Early-Titled-Tuesday-Blitz-February-13-2024"]
[Site "Chess.com"]
[Date "2024.02.13"]
[Round "5"]
[White "ChessBliss09"]
[Black "RaugintaBulba"]
[Result "0-1"]
[WhiteElo "2130"]
[BlackElo "2428"]
[TimeControl "180+1"]
[EndTime "8:59:41 PST"]
[Termination "RaugintaBulba won by checkmate"]

1. c4 {[%clk 0:03:00.9]} 1... b6 {[%clk 0:02:55.2]} 2. d4 {[%clk 0:02:59.9]}
2... Bb7 {[%clk 0:02:55.8]} 3. Nc3 {[%clk 0:02:59.9]} 3... g6 {[%clk 0:02:54.9]}
4. e4 {[%clk 0:02:59]} 4... Bg7 {[%clk 0:02:55.5]} 5. Nf3 {[%clk 0:02:58.9]}
5... c5 {[%clk 0:02:56]} 6. Be3 {[%clk 0:02:58.4]} 6... d6 {[%clk 0:02:51.2]} 7.
d5 {[%clk 0:02:58.4]} 7... Nf6 {[%clk 0:02:51]} 8. Bd3 {[%clk 0:02:58.2]} 8...
Nbd7 {[%clk 0:02:48.8]} 9. O-O {[%clk 0:02:57.8]} 9... Ng4 {[%clk 0:02:47.2]}
10. Qe2 {[%clk 0:02:54.8]} 10... Nxe3 {[%clk 0:02:46.7]} 11. Qxe3 {[%clk
0:02:54.7]} 11... O-O {[%clk 0:02:45.2]} 12. Nd2 {[%clk 0:02:53.5]} 12... a6
{[%clk 0:02:44.1]} 13. Kh1 {[%clk 0:02:49.2]} 13... Ne5 {[%clk 0:02:39.1]} 14.
f4 {[%clk 0:02:43.4]} 14... Nxd3 {[%clk 0:02:39.2]} 15. Qxd3 {[%clk 0:02:42.9]}
15... b5 {[%clk 0:02:38.3]} 16. cxb5 {[%clk 0:02:42]} 16... axb5 {[%clk
0:02:39.2]} 17. Qxb5 {[%clk 0:02:38]} 17... Ba6 {[%clk 0:02:38.8]} 18. Qb3
{[%clk 0:02:32.9]} 18... Bxf1 {[%clk 0:02:37]} 19. Rxf1 {[%clk 0:02:33.5]} 19...
Qa5 {[%clk 0:02:32.8]} 20. Nc4 {[%clk 0:02:29.7]} 20... Qb4 {[%clk 0:02:29.9]}
21. Qxb4 {[%clk 0:02:09]} 21... cxb4 {[%clk 0:02:28.6]} 22. Nb5 {[%clk
0:02:04.3]} 22... Rxa2 {[%clk 0:02:24.5]} 23. b3 {[%clk 0:02:02.5]} 23... Rfa8
{[%clk 0:02:20.6]} 24. e5 {[%clk 0:02:00.2]} 24... Ra1 {[%clk 0:02:11.9]} 25.
Kg1 {[%clk 0:01:59.4]} 25... dxe5 {[%clk 0:02:04.2]} 26. fxe5 {[%clk 0:01:57.9]}
26... Rxf1+ {[%clk 0:01:54.6]} 27. Kxf1 {[%clk 0:01:57.3]} 27... Ra1+ {[%clk
0:01:55.3]} 28. Kf2 {[%clk 0:01:56]} 28... Rb1 {[%clk 0:01:51.5]} 29. Nd4 {[%clk
0:01:53.2]} 29... f6 {[%clk 0:01:41.8]} 30. e6 {[%clk 0:01:46.5]} 30... f5
{[%clk 0:01:34.5]} 31. Nc6 {[%clk 0:01:42.9]} 31... Bf6 {[%clk 0:01:22.1]} 32.
Nxb4 {[%clk 0:01:33.9]} 32... Rxb3 {[%clk 0:01:21.6]} 33. Nc6 {[%clk 0:01:31.9]}
33... Rc3 {[%clk 0:01:16.5]} 34. N6a5 {[%clk 0:01:23.5]} 34... Rd3 {[%clk
0:01:05.4]} 35. Nb6 {[%clk 0:01:16]} 35... Bd4+ {[%clk 0:01:04.9]} 36. Ke2
{[%clk 0:01:15.4]} 36... Bxb6 {[%clk 0:01:05.6]} 37. Kxd3 {[%clk 0:01:15]} 37...
Bxa5 {[%clk 0:01:06.1]} 38. Kc4 {[%clk 0:01:10.6]} 38... Bc7 {[%clk 0:01:05.7]}
39. h3 {[%clk 0:01:07.6]} 39... Bd6 {[%clk 0:01:06.6]} 40. Kb5 {[%clk 0:01:07]}
40... Kg7 {[%clk 0:01:07.5]} 41. Kc6 {[%clk 0:01:07.1]} 41... Kf6 {[%clk
0:01:08.4]} 42. Kd7 {[%clk 0:01:00.7]} 42... h6 {[%clk 0:01:09.3]} 43. Ke8
{[%clk 0:01:00.4]} 43... g5 {[%clk 0:01:10.2]} 44. Kf8 {[%clk 0:01:00.2]} 44...
h5 {[%clk 0:01:11.1]} 45. Kg8 {[%clk 0:01:00.2]} 45... g4 {[%clk 0:01:12]} 46.
hxg4 {[%clk 0:01:00]} 46... hxg4 {[%clk 0:01:12.9]} 47. Kh7 {[%clk 0:01:00.3]}
47... f4 {[%clk 0:01:13.8]} 48. Kh6 {[%clk 0:01:00.1]} 48... f3 {[%clk
0:01:14.1]} 49. gxf3 {[%clk 0:01:00.4]} 49... gxf3 {[%clk 0:01:14.2]} 50. Kh5
{[%clk 0:01:01.3]} 50... Kf5 {[%clk 0:01:12.8]} 51. Kh6 {[%clk 0:00:59.3]} 51...
f2 {[%clk 0:01:10]} 52. Kg7 {[%clk 0:00:59.9]} 52... f1=Q {[%clk 0:01:08.9]} 53.
Kf8 {[%clk 0:01:00.4]} 53... Qg1 {[%clk 0:01:05.6]} 54. Ke8 {[%clk 0:00:59]}
54... Qg8+ {[%clk 0:01:06.5]} 55. Kd7 {[%clk 0:00:57.7]} 55... Qb8 {[%clk
0:00:56.4]} 56. Kc6 {[%clk 0:00:57.3]} 56... Qc7+ {[%clk 0:00:57.3]} 57. Kb5
{[%clk 0:00:57.1]} 57... Qc5+ {[%clk 0:00:58.2]} 58. Ka6 {[%clk 0:00:56.6]}
58... Bc7 {[%clk 0:00:58.8]} 59. Kb7 {[%clk 0:00:55.6]} 59... Ba5 {[%clk
0:00:54.8]} 60. Ka8 {[%clk 0:00:51.9]} 60... Qxd5+ {[%clk 0:00:53.4]} 61. Ka7
{[%clk 0:00:51.3]} 61... Qc5+ {[%clk 0:00:51.7]} 62. Kb7 {[%clk 0:00:50.6]}
62... Qb6+ {[%clk 0:00:51.8]} 63. Ka8 {[%clk 0:00:50.3]} 63... Qd8+ {[%clk
0:00:46.9]} 64. Kb7 {[%clk 0:00:50.1]} 64... Kxe6 {[%clk 0:00:44.1]} 65. Kc6
{[%clk 0:00:47.5]} 65... Qd5# {[%clk 0:00:44.2]} 0-1

[Event "Early-Titled-Tuesday-Blitz-February-13-2024"]
[Site "Chess.com"]
[Date "2024.02.13"]
[Round "5"]
[White "Ykow"]
[Black "Fonsofan"]
[Result "1-0"]
[WhiteElo "2520"]
[BlackElo "2655"]
[TimeControl "180+1"]
[EndTime "8:59:42 PST"]
[Termination "Ykow won on time"]

1. e4 {[%clk 0:02:51.1]} 1... Nf6 {[%clk 0:02:57.5]} 2. e5 {[%clk 0:02:50.3]}
2... Nd5 {[%clk 0:02:58.2]} 3. d4 {[%clk 0:02:51.2]} 3... d6 {[%clk 0:02:58.1]}
4. Nf3 {[%clk 0:02:51.2]} 4... Bg4 {[%clk 0:02:56.3]} 5. Be2 {[%clk 0:02:51.3]}
5... e6 {[%clk 0:02:53.9]} 6. exd6 {[%clk 0:02:50.9]} 6... Bxd6 {[%clk
0:02:52.1]} 7. h3 {[%clk 0:02:51.4]} 7... Bh5 {[%clk 0:02:51.6]} 8. c4 {[%clk
0:02:51.4]} 8... Nf6 {[%clk 0:02:50.3]} 9. Nc3 {[%clk 0:02:51.2]} 9... O-O
{[%clk 0:02:48.6]} 10. O-O {[%clk 0:02:51.3]} 10... a6 {[%clk 0:02:46]} 11. Bg5
{[%clk 0:02:50.5]} 11... Nbd7 {[%clk 0:02:40.8]} 12. Qd2 {[%clk 0:02:49.9]}
12... c6 {[%clk 0:02:36.8]} 13. Rad1 {[%clk 0:02:40.1]} 13... Qb8 {[%clk
0:02:35.7]} 14. Rfe1 {[%clk 0:02:24.4]} 14... b5 {[%clk 0:02:34]} 15. b3 {[%clk
0:02:09.1]} 15... Re8 {[%clk 0:02:30.9]} 16. Ne5 {[%clk 0:01:34.6]} 16... Bxe2
{[%clk 0:02:03.4]} 17. Qxe2 {[%clk 0:01:35.5]} 17... Qb7 {[%clk 0:01:57.3]} 18.
Qf3 {[%clk 0:01:21.5]} 18... Rac8 {[%clk 0:01:53.7]} 19. Nxd7 {[%clk 0:01:17.7]}
19... Nxd7 {[%clk 0:01:53.2]} 20. Ne4 {[%clk 0:01:18.6]} 20... Bf8 {[%clk
0:01:43.8]} 21. Bf4 {[%clk 0:01:09.4]} 21... bxc4 {[%clk 0:01:36.8]} 22. bxc4
{[%clk 0:01:10.3]} 22... Qb4 {[%clk 0:01:37]} 23. c5 {[%clk 0:01:10.7]} 23...
Red8 {[%clk 0:01:30.1]} 24. Bd6 {[%clk 0:01:08.6]} 24... h6 {[%clk 0:01:15.7]}
25. g4 {[%clk 0:01:04.1]} 25... Qc4 {[%clk 0:00:58.4]} 26. h4 {[%clk 0:01:00.4]}
26... Qd5 {[%clk 0:00:50.9]} 27. Qf4 {[%clk 0:01:00.7]} 27... f5 {[%clk
0:00:48.7]} 28. Bxf8 {[%clk 0:00:38]} 28... fxe4 {[%clk 0:00:38.9]} 29. Bd6
{[%clk 0:00:38]} 29... Qxa2 {[%clk 0:00:38.5]} 30. g5 {[%clk 0:00:36.3]} 30...
Qd5 {[%clk 0:00:31.6]} 31. Rxe4 {[%clk 0:00:34.3]} 31... hxg5 {[%clk 0:00:28.3]}
32. hxg5 {[%clk 0:00:35.2]} 32... Nf8 {[%clk 0:00:28]} 33. Rde1 {[%clk
0:00:34.9]} 33... Ng6 {[%clk 0:00:24.9]} 34. Qg4 {[%clk 0:00:35.1]} 34... Re8
{[%clk 0:00:19.1]} 35. Rxe6 {[%clk 0:00:33.4]} 35... Rxe6 {[%clk 0:00:18.8]} 36.
Rxe6 {[%clk 0:00:34.3]} 36... Nh4 {[%clk 0:00:14.5]} 37. Re3 {[%clk 0:00:34.2]}
37... Nf5 {[%clk 0:00:07.5]} 38. Re5 {[%clk 0:00:34.4]} 38... Qxd4 {[%clk
0:00:05]} 39. Qxf5 {[%clk 0:00:34.7]} 39... Qd1+ {[%clk 0:00:03.4]} 40. Kg2
{[%clk 0:00:35.2]} 40... Ra8 {[%clk 0:00:02.7]} 41. g6 {[%clk 0:00:35.7]} 1-0

[Event "Early-Titled-Tuesday-Blitz-February-13-2024"]
[Site "Chess.com"]
[Date "2024.02.13"]
[Round "5"]
[White "kylelancman"]
[Black "zverr1"]
[Result "0-1"]
[WhiteElo "2431"]
[BlackElo "2578"]
[TimeControl "180+1"]
[EndTime "8:59:42 PST"]
[Termination "zverr1 won on time"]

1. e4 {[%clk 0:02:56.4]} 1... c5 {[%clk 0:02:59.9]} 2. Nf3 {[%clk 0:02:50.9]}
2... Nc6 {[%clk 0:03:00]} 3. c3 {[%clk 0:02:37.2]} 3... Nf6 {[%clk 0:02:44]} 4.
e5 {[%clk 0:02:35.2]} 4... Nd5 {[%clk 0:02:43.6]} 5. Bc4 {[%clk 0:02:32.1]} 5...
Nb6 {[%clk 0:02:38.3]} 6. Bb3 {[%clk 0:02:31.2]} 6... c4 {[%clk 0:02:33.5]} 7.
Bc2 {[%clk 0:02:31.2]} 7... d6 {[%clk 0:02:32.3]} 8. exd6 {[%clk 0:02:29.7]}
8... Qxd6 {[%clk 0:02:30.2]} 9. O-O {[%clk 0:02:28.7]} 9... Bg4 {[%clk
0:02:29.4]} 10. h3 {[%clk 0:02:20.6]} 10... Bh5 {[%clk 0:02:27.8]} 11. Na3
{[%clk 0:02:19.6]} 11... O-O-O {[%clk 0:02:14.3]} 12. b3 {[%clk 0:02:17.5]}
12... Ne5 {[%clk 0:01:35.7]} 13. g4 {[%clk 0:02:07.4]} 13... Nxg4 {[%clk
0:01:35.4]} 14. Bf5+ {[%clk 0:02:03.3]} 14... e6 {[%clk 0:01:34.6]} 15. hxg4
{[%clk 0:01:53.2]} 15... Bg6 {[%clk 0:00:59.7]} 16. Bxg6 {[%clk 0:01:40.3]}
16... hxg6 {[%clk 0:01:00.6]} 17. d4 {[%clk 0:01:24]} 17... cxd3 {[%clk
0:00:53.9]} 18. Nb5 {[%clk 0:01:20.7]} 18... Qb8 {[%clk 0:00:33.1]} 19. Be3
{[%clk 0:01:12.2]} 19... e5 {[%clk 0:00:27.9]} 20. Qd2 {[%clk 0:00:44.2]} 20...
Be7 {[%clk 0:00:04.7]} 21. a4 {[%clk 0:00:26.3]} 21... f6 {[%clk 0:00:04.3]} 22.
a5 {[%clk 0:00:24.9]} 22... a6 {[%clk 0:00:02]} 23. Na7+ {[%clk 0:00:16]} 23...
Qxa7 {[%clk 0:00:02.1]} 24. Bxb6 {[%clk 0:00:15.8]} 24... Qb8 {[%clk 0:00:02.8]}
25. Bxd8 {[%clk 0:00:12.3]} 25... e4 {[%clk 0:00:03.5]} 26. Rfe1 {[%clk
0:00:03.2]} 26... exf3 {[%clk 0:00:03.5]} 0-1

[Event "Early-Titled-Tuesday-Blitz-February-13-2024"]
[Site "Chess.com"]
[Date "2024.02.13"]
[Round "5"]
[White "allvim"]
[Black "barbara25"]
[Result "0-1"]
[WhiteElo "2447"]
[BlackElo "2298"]
[TimeControl "180+1"]
[EndTime "8:59:45 PST"]
[Termination "barbara25 won by resignation"]

1. e4 {[%clk 0:03:00.9]} 1... d6 {[%clk 0:02:59.5]} 2. d4 {[%clk 0:03:00.3]}
2... g6 {[%clk 0:02:58]} 3. Nc3 {[%clk 0:02:59.4]} 3... Bg7 {[%clk 0:02:58.4]}
4. f4 {[%clk 0:03:00.1]} 4... Nd7 {[%clk 0:02:58.5]} 5. Nf3 {[%clk 0:02:59.5]}
5... e5 {[%clk 0:02:56]} 6. Bc4 {[%clk 0:02:58.7]} 6... exd4 {[%clk 0:02:50.9]}
7. Nxd4 {[%clk 0:02:58.8]} 7... Ngf6 {[%clk 0:02:50.3]} 8. Be3 {[%clk
0:02:58.2]} 8... O-O {[%clk 0:02:50.3]} 9. Qd2 {[%clk 0:02:54.9]} 9... c6 {[%clk
0:02:50.7]} 10. a4 {[%clk 0:02:54.4]} 10... Nc5 {[%clk 0:02:47.8]} 11. Bd3
{[%clk 0:02:51.1]} 11... Re8 {[%clk 0:02:48]} 12. O-O-O {[%clk 0:02:47.7]} 12...
Nfxe4 {[%clk 0:02:46.1]} 13. Nxe4 {[%clk 0:02:48]} 13... Nxe4 {[%clk 0:02:47]}
14. Bxe4 {[%clk 0:02:48.5]} 14... Rxe4 {[%clk 0:02:47.8]} 15. Rhe1 {[%clk
0:02:47.5]} 15... d5 {[%clk 0:02:34.9]} 16. h3 {[%clk 0:02:46.7]} 16... Qf6
{[%clk 0:02:31.7]} 17. c3 {[%clk 0:02:40.8]} 17... Bd7 {[%clk 0:02:29.4]} 18.
Nf3 {[%clk 0:02:41.1]} 18... Qd6 {[%clk 0:02:16.9]} 19. Qc2 {[%clk 0:02:34.5]}
19... Rae8 {[%clk 0:02:15.7]} 20. Bd2 {[%clk 0:02:26.8]} 20... Rxe1 {[%clk
0:02:13.3]} 21. Rxe1 {[%clk 0:02:27.7]} 21... Rxe1+ {[%clk 0:02:13]} 22. Nxe1
{[%clk 0:02:28.6]} 22... Bf5 {[%clk 0:02:13.1]} 23. Qb3 {[%clk 0:02:27.2]} 23...
b6 {[%clk 0:02:11.7]} 24. Nf3 {[%clk 0:02:25.4]} 24... Be4 {[%clk 0:02:10.7]}
25. Nd4 {[%clk 0:02:14.9]} 25... Bxd4 {[%clk 0:02:06]} 26. cxd4 {[%clk
0:02:15.8]} 26... c5 {[%clk 0:02:00.4]} 27. a5 {[%clk 0:02:13.3]} 27... cxd4
{[%clk 0:01:53]} 28. axb6 {[%clk 0:02:13.4]} 28... axb6 {[%clk 0:01:52]} 29. g3
{[%clk 0:02:11.2]} 29... Qc5+ {[%clk 0:01:52]} 30. Kd1 {[%clk 0:02:10.5]} 30...
b5 {[%clk 0:01:46.5]} 31. Bb4 {[%clk 0:02:07.2]} 31... Qc4 {[%clk 0:01:46.3]}
32. Qxc4 {[%clk 0:02:01.8]} 32... dxc4 {[%clk 0:01:45.9]} 33. Bc5 {[%clk
0:02:02.7]} 33... d3 {[%clk 0:01:44.8]} 34. Kd2 {[%clk 0:02:02.6]} 34... Kg7
{[%clk 0:01:44.9]} 35. Bd4+ {[%clk 0:02:01.9]} 35... f6 {[%clk 0:01:44.3]} 36.
Kc3 {[%clk 0:01:58.5]} 36... Kf7 {[%clk 0:01:40.6]} 37. b3 {[%clk 0:01:45.5]}
37... Bd5 {[%clk 0:01:39.8]} 38. Be3 {[%clk 0:01:44.1]} 38... Ke6 {[%clk
0:01:35.7]} 39. g4 {[%clk 0:01:42.6]} 39... h5 {[%clk 0:01:31.1]} 40. f5+ {[%clk
0:01:39.5]} 40... gxf5 {[%clk 0:01:30.4]} 41. gxh5 {[%clk 0:01:40.4]} 41... Kf7
{[%clk 0:01:30.6]} 42. Kd4 {[%clk 0:01:39.7]} 42... cxb3 {[%clk 0:01:16.6]} 43.
Kxd3 {[%clk 0:01:37.2]} 43... b4 {[%clk 0:01:13.5]} 44. Bc1 {[%clk 0:01:22.8]}
44... f4 {[%clk 0:01:09.6]} 45. Bb2 {[%clk 0:00:47.4]} 45... Kg7 {[%clk
0:01:06]} 46. Kd4 {[%clk 0:00:45.2]} 46... f3 {[%clk 0:01:03.6]} 47. Ke3 {[%clk
0:00:43.2]} 47... Kh6 {[%clk 0:01:03.8]} 48. Bxf6 {[%clk 0:00:39.4]} 48... Kxh5
{[%clk 0:01:04.1]} 49. Bb2 {[%clk 0:00:22.6]} 49... Kh4 {[%clk 0:00:56.7]} 50.
Kf2 {[%clk 0:00:15.4]} 50... Kxh3 {[%clk 0:00:56.3]} 51. Be5 {[%clk 0:00:16.2]}
51... Kg4 {[%clk 0:00:54.7]} 52. Bb2 {[%clk 0:00:17.1]} 52... Kf5 {[%clk
0:00:55.1]} 0-1

[Event "Early-Titled-Tuesday-Blitz-February-13-2024"]
[Site "Chess.com"]
[Date "2024.02.13"]
[Round "5"]
[White "azikom"]
[Black "malakismayil"]
[Result "1-0"]
[WhiteElo "2735"]
[BlackElo "2515"]
[TimeControl "180+1"]
[EndTime "8:59:48 PST"]
[Termination "azikom won on time"]

1. c4 {[%clk 0:02:59.4]} 1... e5 {[%clk 0:02:59.5]} 2. Nc3 {[%clk 0:02:58.8]}
2... Nf6 {[%clk 0:02:59.5]} 3. e3 {[%clk 0:02:59.3]} 3... Bb4 {[%clk 0:02:54.9]}
4. Nge2 {[%clk 0:02:58.8]} 4... O-O {[%clk 0:02:54.6]} 5. a3 {[%clk 0:02:59.1]}
5... Bxc3 {[%clk 0:02:53.3]} 6. Nxc3 {[%clk 0:02:59.5]} 6... Nc6 {[%clk
0:02:54.1]} 7. d3 {[%clk 0:02:56.8]} 7... d6 {[%clk 0:02:54.5]} 8. Be2 {[%clk
0:02:56.3]} 8... h6 {[%clk 0:02:55]} 9. O-O {[%clk 0:02:56.9]} 9... Re8 {[%clk
0:02:55.7]} 10. b4 {[%clk 0:02:56.9]} 10... Be6 {[%clk 0:02:56]} 11. Bb2 {[%clk
0:02:56.6]} 11... a6 {[%clk 0:02:55.3]} 12. Qc2 {[%clk 0:02:56.1]} 12... d5
{[%clk 0:02:50.7]} 13. cxd5 {[%clk 0:02:55.4]} 13... Nxd5 {[%clk 0:02:45.8]} 14.
Ne4 {[%clk 0:02:55.8]} 14... Rb8 {[%clk 0:02:39]} 15. Nc5 {[%clk 0:02:55.1]}
15... Qd6 {[%clk 0:02:38.5]} 16. Nxe6 {[%clk 0:02:53.9]} 16... Rxe6 {[%clk
0:02:39.2]} 17. Bf3 {[%clk 0:02:52]} 17... Nde7 {[%clk 0:02:36.6]} 18. Rac1
{[%clk 0:02:50.8]} 18... Rd8 {[%clk 0:02:36.6]} 19. Rfd1 {[%clk 0:02:50.8]}
19... f5 {[%clk 0:02:30.9]} 20. Qc5 {[%clk 0:02:46.7]} 20... Qd7 {[%clk
0:01:48.5]} 21. h3 {[%clk 0:02:40.3]} 21... Kh8 {[%clk 0:01:47.6]} 22. a4 {[%clk
0:02:14.5]} 22... Nd5 {[%clk 0:01:12.2]} 23. b5 {[%clk 0:02:08.7]} 23... axb5
{[%clk 0:01:13.1]} 24. axb5 {[%clk 0:02:04]} 24... Nce7 {[%clk 0:00:54]} 25. Qc4
{[%clk 0:01:41.5]} 25... c6 {[%clk 0:00:40]} 26. bxc6 {[%clk 0:01:26.8]} 26...
bxc6 {[%clk 0:00:40.9]} 27. g3 {[%clk 0:01:18.1]} 27... Ng6 {[%clk 0:00:27.6]}
28. Bg2 {[%clk 0:01:12.3]} 28... f4 {[%clk 0:00:17.6]} 29. e4 {[%clk 0:01:11.8]}
29... Nf6 {[%clk 0:00:10.6]} 30. d4 {[%clk 0:01:10.4]} 30... fxg3 {[%clk
0:00:09.1]} 31. fxg3 {[%clk 0:01:10.8]} 31... exd4 {[%clk 0:00:07.4]} 32. Rxd4
{[%clk 0:01:09.8]} 32... Qa7 {[%clk 0:00:04.5]} 33. Qxe6 {[%clk 0:01:03.9]}
33... Rxd4 {[%clk 0:00:04.4]} 34. Bxd4 {[%clk 0:01:04.1]} 34... Qxd4+ {[%clk
0:00:05.3]} 35. Kh2 {[%clk 0:01:04.3]} 35... Qe3 {[%clk 0:00:04.9]} 36. Rf1
{[%clk 0:01:00]} 36... Kh7 {[%clk 0:00:05.1]} 37. Qf5 {[%clk 0:00:59.2]} 37...
h5 {[%clk 0:00:03.8]} 38. Rf3 {[%clk 0:00:57.3]} 38... Qe2 {[%clk 0:00:03.4]}
39. e5 {[%clk 0:00:48.9]} 39... Qxe5 {[%clk 0:00:02.6]} 40. Qxe5 {[%clk
0:00:49.2]} 40... Nxe5 {[%clk 0:00:03.5]} 41. Rc3 {[%clk 0:00:49.4]} 41... Nd5
{[%clk 0:00:03.1]} 42. Bxd5 {[%clk 0:00:48.5]} 42... cxd5 {[%clk 0:00:04]} 43.
Rc5 {[%clk 0:00:48.7]} 43... d4 {[%clk 0:00:03.6]} 44. Rxe5 {[%clk 0:00:48.3]}
1-0

[Event "Early-Titled-Tuesday-Blitz-February-13-2024"]
[Site "Chess.com"]
[Date "2024.02.13"]
[Round "5"]
[White "FairChess_on_YouTube"]
[Black "Mops_2004"]
[Result "1-0"]
[WhiteElo "3081"]
[BlackElo "2852"]
[TimeControl "180+1"]
[EndTime "8:59:50 PST"]
[Termination "FairChess_on_YouTube won on time"]

1. d4 {[%clk 0:03:00.9]} 1... g6 {[%clk 0:02:59.7]} 2. e4 {[%clk 0:02:59.4]}
2... Bg7 {[%clk 0:03:00.1]} 3. Nf3 {[%clk 0:03:00]} 3... d6 {[%clk 0:03:00.5]}
4. Bc4 {[%clk 0:02:59.9]} 4... Nc6 {[%clk 0:03:00.7]} 5. O-O {[%clk 0:02:51.2]}
5... Nf6 {[%clk 0:03:00.5]} 6. Qe2 {[%clk 0:02:38.7]} 6... e5 {[%clk 0:02:59.7]}
7. dxe5 {[%clk 0:02:38.4]} 7... Nxe5 {[%clk 0:03:00.6]} 8. Nxe5 {[%clk
0:02:38.5]} 8... dxe5 {[%clk 0:03:01.5]} 9. Rd1 {[%clk 0:02:38.4]} 9... Qe7
{[%clk 0:03:01.7]} 10. b3 {[%clk 0:02:36.7]} 10... O-O {[%clk 0:02:54.5]} 11.
Ba3 {[%clk 0:02:34.7]} 11... c5 {[%clk 0:02:55.1]} 12. Nc3 {[%clk 0:02:34.6]}
12... b6 {[%clk 0:02:50.3]} 13. Rd3 {[%clk 0:02:20.6]} 13... Bg4 {[%clk
0:02:30.7]} 14. f3 {[%clk 0:02:16.2]} 14... Be6 {[%clk 0:02:30.5]} 15. Rad1
{[%clk 0:02:10.6]} 15... Bxc4 {[%clk 0:02:29.1]} 16. bxc4 {[%clk 0:02:11.5]}
16... Rfc8 {[%clk 0:02:11.6]} 17. Bc1 {[%clk 0:02:10.8]} 17... h6 {[%clk
0:02:09.4]} 18. Nd5 {[%clk 0:01:56.1]} 18... Nxd5 {[%clk 0:01:57.7]} 19. Rxd5
{[%clk 0:01:57]} 19... Rd8 {[%clk 0:01:42.1]} 20. Qd3 {[%clk 0:01:54.6]} 20...
Rxd5 {[%clk 0:01:40.7]} 21. Qxd5 {[%clk 0:01:55.5]} 21... Rc8 {[%clk 0:01:37.3]}
22. Qd7 {[%clk 0:01:53.6]} 22... Rc7 {[%clk 0:01:35.9]} 23. Qxe7 {[%clk
0:01:52.4]} 23... Rxe7 {[%clk 0:01:35.7]} 24. Rd8+ {[%clk 0:01:53]} 24... Kh7
{[%clk 0:01:35.4]} 25. a4 {[%clk 0:01:46.3]} 25... a5 {[%clk 0:01:05.5]} 26. Kf2
{[%clk 0:01:32.5]} 26... Bf6 {[%clk 0:00:53.5]} 27. g3 {[%clk 0:01:27.8]} 27...
Bg5 {[%clk 0:00:40.9]} 28. Bb2 {[%clk 0:01:17.4]} 28... Bf6 {[%clk 0:00:25.3]}
29. Rd6 {[%clk 0:00:55.6]} 29... Re6 {[%clk 0:00:25.4]} 30. Rd7 {[%clk
0:00:56.2]} 30... Kg7 {[%clk 0:00:21.4]} 31. Bc3 {[%clk 0:00:56.2]} 31... Kf8
{[%clk 0:00:18.3]} 32. Rb7 {[%clk 0:00:52.8]} 32... Kg7 {[%clk 0:00:12.1]} 33.
Ke2 {[%clk 0:00:53]} 33... Kf8 {[%clk 0:00:11.1]} 34. Bd2 {[%clk 0:00:51.6]}
34... Kg7 {[%clk 0:00:09.5]} 35. Be3 {[%clk 0:00:51.7]} 35... Bg5 {[%clk
0:00:08.5]} 36. f4 {[%clk 0:00:45.5]} 36... exf4 {[%clk 0:00:08.5]} 37. gxf4
{[%clk 0:00:46.4]} 37... Bf6 {[%clk 0:00:08.4]} 38. e5 {[%clk 0:00:44.4]} 38...
Bh4 {[%clk 0:00:07.1]} 39. Kf3 {[%clk 0:00:44.6]} 39... Kf8 {[%clk 0:00:04.2]}
40. Ke4 {[%clk 0:00:43.3]} 40... Be7 {[%clk 0:00:03.2]} 41. Kd5 {[%clk
0:00:41.6]} 41... Kg7 {[%clk 0:00:02.2]} 42. Rb8 {[%clk 0:00:39.3]} 42... h5
{[%clk 0:00:02.2]} 43. Bf2 {[%clk 0:00:38.6]} 1-0

[Event "Early-Titled-Tuesday-Blitz-February-13-2024"]
[Site "Chess.com"]
[Date "2024.02.13"]
[Round "5"]
[White "stollenmonster"]
[Black "ChessRespected"]
[Result "1-0"]
[WhiteElo "2895"]
[BlackElo "2559"]
[TimeControl "180+1"]
[EndTime "8:59:52 PST"]
[Termination "stollenmonster won on time"]

1. e4 {[%clk 0:03:00.9]} 1... e5 {[%clk 0:02:59.5]} 2. Nc3 {[%clk 0:03:00.6]}
2... Nf6 {[%clk 0:02:58.6]} 3. g3 {[%clk 0:03:01.5]} 3... d5 {[%clk 0:02:57.9]}
4. exd5 {[%clk 0:03:02.4]} 4... Nxd5 {[%clk 0:02:58.1]} 5. Bg2 {[%clk 0:03:03]}
5... Nxc3 {[%clk 0:02:58.4]} 6. bxc3 {[%clk 0:03:03.9]} 6... Bd6 {[%clk
0:02:58.7]} 7. d3 {[%clk 0:03:04.2]} 7... O-O {[%clk 0:02:59.1]} 8. Ne2 {[%clk
0:03:04.8]} 8... Nc6 {[%clk 0:02:48.2]} 9. Rb1 {[%clk 0:03:04.5]} 9... Qd7
{[%clk 0:02:20.6]} 10. O-O {[%clk 0:03:03.1]} 10... Rb8 {[%clk 0:02:15.4]} 11.
f4 {[%clk 0:03:00.9]} 11... b6 {[%clk 0:02:10.1]} 12. f5 {[%clk 0:03:00.6]}
12... Bb7 {[%clk 0:02:09.1]} 13. g4 {[%clk 0:03:01.2]} 13... f6 {[%clk
0:02:05.7]} 14. Ng3 {[%clk 0:03:01.5]} 14... Ne7 {[%clk 0:02:05.4]} 15. Ne4
{[%clk 0:02:58.8]} 15... Kh8 {[%clk 0:02:01.3]} 16. c4 {[%clk 0:02:49.9]} 16...
Nc6 {[%clk 0:01:47.6]} 17. g5 {[%clk 0:02:42.7]} 17... fxg5 {[%clk 0:01:43.6]}
18. f6 {[%clk 0:02:42.9]} 18... gxf6 {[%clk 0:01:38.3]} 19. Nxf6 {[%clk
0:02:38.3]} 19... Bc5+ {[%clk 0:01:35.4]} 20. Kh1 {[%clk 0:02:37.1]} 20... Qg7
{[%clk 0:01:30.4]} 21. Ne4 {[%clk 0:02:19.9]} 21... Rxf1+ {[%clk 0:01:28.2]} 22.
Qxf1 {[%clk 0:02:20.8]} 22... Rf8 {[%clk 0:01:27.5]} 23. Qd1 {[%clk 0:02:18.5]}
23... Nd4 {[%clk 0:01:27.3]} 24. Qh5 {[%clk 0:02:05.9]} 24... Qf7 {[%clk
0:01:09.1]} 25. Qxf7 {[%clk 0:01:35.8]} 25... Rxf7 {[%clk 0:01:10]} 26. Bxg5
{[%clk 0:01:34.3]} 26... Bxe4 {[%clk 0:01:02.2]} 27. Bxe4 {[%clk 0:01:33.4]}
27... Nxc2 {[%clk 0:01:01.9]} 28. Bd5 {[%clk 0:01:20.2]} 28... Rf8 {[%clk
0:00:59.2]} 29. Bh6 {[%clk 0:01:10.6]} 29... Rf6 {[%clk 0:00:57.7]} 30. Bg5
{[%clk 0:01:09.8]} 30... Rg6 {[%clk 0:00:54]} 31. Bd8 {[%clk 0:01:06.5]} 31...
Ne3 {[%clk 0:00:50.7]} 32. Be4 {[%clk 0:00:44.5]} 32... Re6 {[%clk 0:00:44.6]}
33. Rg1 {[%clk 0:00:38.3]} 33... Nxc4 {[%clk 0:00:33.6]} 34. Rg5 {[%clk
0:00:24.4]} 34... Nd6 {[%clk 0:00:29.8]} 35. Bd5 {[%clk 0:00:24.7]} 35... Rg6
{[%clk 0:00:25.3]} 36. Bf6+ {[%clk 0:00:25.2]} 1-0